Workbook

Sheet GC
A1: GC
C9: SumProduct Pty Ltd
C10: Simulation Example
C11: Go to Table of Contents
C19: Primary Developer: Liam Bastick
C21: General Cover Notes:
C22: Simple illustration of how to construct simulations analysis using the NORMINV function.
C24: Any queries, please e-mail: | G24: liam.bastick@sumproduct.com
C25: Website: | G25: www.sumproduct.com
C26: For past articles visit: | G26: www.sumproduct.com

Sheet Contents
A1: C | B1: Table of Contents
B2: =Model_Name -> Simulation Example
B3: Go to Cover Sheet
A6: é | B6: Section & Sheet Titles | Q6: Page
B8: 1 | D8: =Examples_SC!C9 -> Examples | Q8: 3
F9: a. | H9: ='Normal Distributions'!B1 -> Normal Distributions | Q9: 4
F10: b. | H10: ='Simulation Example'!B1 -> Simulation Example | Q10: 5
B11: 2 | D11: =Required_List_SC!C9 -> Required List | Q11: 6
F12: a. | H12: =Lookups!B1 -> Lookups | Q12: 7
B14: Total Pages: | Q14: 7

Sheet Examples_SC
A1: SC
C9: Examples
C10: Section 1.
C11: =Model_Name -> Simulation Example
C12: Go to Table of Contents
C13: ç | D13: è
C17: Section Cover Notes:
C18: Construction of simple exampls using the NORM.INV function.

Sheet Normal Distributions
B1: Normal Distributions
B2: =Model_Name -> Simulation Example
B3: Go to Table of Contents
A4: é | B4: ç | C4: è
B7: =B1 -> Normal Distributions
C9: Assumptions
F11: Mean | I11: 0
F12: Standard Deviation | I12: 1
C15: Calculations
F17: Value | G17: Cum Probability | I17: Incorrect Probability | J17: Correct Probability | L17: Value | M17: NORMINV
F18: =-3*I12 -> -3 | G18: =NORMDIST($F18,Mean,Standard_Deviation,TRUE) -> 0.001349898032 | I18: =NORMDIST($F18,Mean,Standard_Deviation,FALSE) -> 0.004431848412 | L18: =G18 -> 0.001349898032 | M18: =NORMINV($L18,Mean,Standard_Deviation) -> -3
F19: =ROUND(F18+(0.1*$I$12),1) -> -2.9 | G19: =NORMDIST($F19,Mean,Standard_Deviation,TRUE) -> 0.0018658133 | I19: =NORMDIST($F19,Mean,Standard_Deviation,FALSE) -> 0.00595253242 | J19: =G19-G18 -> 0.0005159152688 | L19: =G19 -> 0.0018658133 | M19: =NORMINV($L19,Mean,Standard_Deviation) -> -2.9
F20: =ROUND(F19+(0.1*$I$12),1) -> -2.8 | G20: =NORMDIST($F20,Mean,Standard_Deviation,TRUE) -> 0.00255513033 | I20: =NORMDIST($F20,Mean,Standard_Deviation,FALSE) -> 0.007915451583 | J20: =G20-G19 -> 0.00068931703 | L20: 0.00255513033 | M20: =NORMINV($L20,Mean,Standard_Deviation) -> -2.8
F21: -2.7 | G21: =NORMDIST($F21,Mean,Standard_Deviation,TRUE) -> 0.003466973803 | I21: =NORMDIST($F21,Mean,Standard_Deviation,FALSE) -> 0.01042093481 | J21: 0.0009118434726 | L21: 0.003466973803 | M21: =NORMINV($L21,Mean,Standard_Deviation) -> -2.7
F22: -2.6 | G22: =NORMDIST($F22,Mean,Standard_Deviation,TRUE) -> 0.004661188024 | I22: =NORMDIST($F22,Mean,Standard_Deviation,FALSE) -> 0.01358296923 | J22: 0.001194214221 | L22: 0.004661188024 | M22: =NORMINV($L22,Mean,Standard_Deviation) -> -2.6
F23: -2.5 | G23: =NORMDIST($F23,Mean,Standard_Deviation,TRUE) -> 0.006209665326 | I23: =NORMDIST($F23,Mean,Standard_Deviation,FALSE) -> 0.01752830049 | J23: 0.001548477302 | L23: 0.006209665326 | M23: =NORMINV($L23,Mean,Standard_Deviation) -> -2.5
F24: -2.4 | G24: =NORMDIST($F24,Mean,Standard_Deviation,TRUE) -> 0.008197535925 | I24: =NORMDIST($F24,Mean,Standard_Deviation,FALSE) -> 0.02239453029 | J24: 0.001987870599 | L24: 0.008197535925 | M24: =NORMINV($L24,Mean,Standard_Deviation) -> -2.4
F25: -2.3 | G25: =NORMDIST($F25,Mean,Standard_Deviation,TRUE) -> 0.01072411002 | I25: =NORMDIST($F25,Mean,Standard_Deviation,FALSE) -> 0.02832703774 | J25: 0.002526574097 | L25: 0.01072411002 | M25: =NORMINV($L25,Mean,Standard_Deviation) -> -2.3
F26: -2.2 | G26: =NORMDIST($F26,Mean,Standard_Deviation,TRUE) -> 0.01390344751 | I26: =NORMDIST($F26,Mean,Standard_Deviation,FALSE) -> 0.03547459285 | J26: 0.003179337492 | L26: 0.01390344751 | M26: =NORMINV($L26,Mean,Standard_Deviation) -> -2.2
F27: -2.1 | G27: =NORMDIST($F27,Mean,Standard_Deviation,TRUE) -> 0.01786442056 | I27: =NORMDIST($F27,Mean,Standard_Deviation,FALSE) -> 0.04398359598 | J27: 0.003960973049 | L27: 0.01786442056 | M27: =NORMINV($L27,Mean,Standard_Deviation) -> -2.1
F28: -2 | G28: =NORMDIST($F28,Mean,Standard_Deviation,TRUE) -> 0.02275013195 | I28: =NORMDIST($F28,Mean,Standard_Deviation,FALSE) -> 0.05399096651 | J28: 0.004885711385 | L28: 0.02275013195 | M28: =NORMINV($L28,Mean,Standard_Deviation) -> -2
F29: -1.9 | G29: =NORMDIST($F29,Mean,Standard_Deviation,TRUE) -> 0.02871655982 | I29: =NORMDIST($F29,Mean,Standard_Deviation,FALSE) -> 0.06561581477 | J29: 0.005966427868 | L29: 0.02871655982 | M29: =NORMINV($L29,Mean,Standard_Deviation) -> -1.9
F30: -1.8 | G30: =NORMDIST($F30,Mean,Standard_Deviation,TRUE) -> 0.03593031911 | I30: =NORMDIST($F30,Mean,Standard_Deviation,FALSE) -> 0.0789501583 | J30: 0.007213759297 | L30: 0.03593031911 | M30: =NORMINV($L30,Mean,Standard_Deviation) -> -1.8
F31: -1.7 | G31: =NORMDIST($F31,Mean,Standard_Deviation,TRUE) -> 0.04456546276 | I31: =NORMDIST($F31,Mean,Standard_Deviation,FALSE) -> 0.09404907738 | J31: 0.008635143646 | L31: 0.04456546276 | M31: =NORMINV($L31,Mean,Standard_Deviation) -> -1.7
F32: -1.6 | G32: =NORMDIST($F32,Mean,Standard_Deviation,TRUE) -> 0.0547992917 | I32: =NORMDIST($F32,Mean,Standard_Deviation,FALSE) -> 0.1109208347 | J32: 0.01023382894 | L32: 0.0547992917 | M32: =NORMINV($L32,Mean,Standard_Deviation) -> -1.6
F33: -1.5 | G33: =NORMDIST($F33,Mean,Standard_Deviation,TRUE) -> 0.06680720127 | I33: =NORMDIST($F33,Mean,Standard_Deviation,FALSE) -> 0.1295175957 | J33: 0.01200790957 | L33: 0.06680720127 | M33: =NORMINV($L33,Mean,Standard_Deviation) -> -1.5
F34: -1.4 | G34: =NORMDIST($F34,Mean,Standard_Deviation,TRUE) -> 0.08075665923 | I34: =NORMDIST($F34,Mean,Standard_Deviation,FALSE) -> 0.1497274656 | J34: 0.01394945796 | L34: 0.08075665923 | M34: =NORMINV($L34,Mean,Standard_Deviation) -> -1.4
F35: -1.3 | G35: =NORMDIST($F35,Mean,Standard_Deviation,TRUE) -> 0.09680048459 | I35: =NORMDIST($F35,Mean,Standard_Deviation,FALSE) -> 0.171368592 | J35: 0.01604382535 | L35: 0.09680048459 | M35: =NORMINV($L35,Mean,Standard_Deviation) -> -1.3
F36: -1.2 | G36: =NORMDIST($F36,Mean,Standard_Deviation,TRUE) -> 0.1150696702 | I36: =NORMDIST($F36,Mean,Standard_Deviation,FALSE) -> 0.194186055 | J36: 0.01826918564 | L36: 0.1150696702 | M36: =NORMINV($L36,Mean,Standard_Deviation) -> -1.2
F37: -1.1 | G37: =NORMDIST($F37,Mean,Standard_Deviation,TRUE) -> 0.1356660609 | I37: =NORMDIST($F37,Mean,Standard_Deviation,FALSE) -> 0.217852177 | J37: 0.02059639072 | L37: 0.1356660609 | M37: =NORMINV($L37,Mean,Standard_Deviation) -> -1.1
F38: -1 | G38: =NORMDIST($F38,Mean,Standard_Deviation,TRUE) -> 0.1586552539 | I38: =NORMDIST($F38,Mean,Standard_Deviation,FALSE) -> 0.2419707245 | J38: 0.02298919299 | L38: 0.1586552539 | M38: =NORMINV($L38,Mean,Standard_Deviation) -> -1
F39: -0.9 | G39: =NORMDIST($F39,Mean,Standard_Deviation,TRUE) -> 0.1840601253 | I39: =NORMDIST($F39,Mean,Standard_Deviation,FALSE) -> 0.2660852499 | J39: 0.02540487142 | L39: 0.1840601253 | M39: =NORMINV($L39,Mean,Standard_Deviation) -> -0.9
F40: -0.8 | G40: =NORMDIST($F40,Mean,Standard_Deviation,TRUE) -> 0.2118553986 | I40: =NORMDIST($F40,Mean,Standard_Deviation,FALSE) -> 0.2896915528 | J40: 0.02779527324 | L40: 0.2118553986 | M40: =NORMINV($L40,Mean,Standard_Deviation) -> -0.8
F41: -0.7 | G41: =NORMDIST($F41,Mean,Standard_Deviation,TRUE) -> 0.2419636522 | I41: =NORMDIST($F41,Mean,Standard_Deviation,FALSE) -> 0.3122539334 | J41: 0.03010825364 | L41: 0.2419636522 | M41: =NORMINV($L41,Mean,Standard_Deviation) -> -0.7
F42: -0.6 | G42: =NORMDIST($F42,Mean,Standard_Deviation,TRUE) -> 0.2742531178 | I42: =NORMDIST($F42,Mean,Standard_Deviation,FALSE) -> 0.3332246029 | J42: 0.03228946553 | L42: 0.2742531178 | M42: =NORMINV($L42,Mean,Standard_Deviation) -> -0.6
F43: -0.5 | G43: =NORMDIST($F43,Mean,Standard_Deviation,TRUE) -> 0.3085375387 | I43: =NORMDIST($F43,Mean,Standard_Deviation,FALSE) -> 0.3520653268 | J43: 0.03428442098 | L43: 0.3085375387 | M43: =NORMINV($L43,Mean,Standard_Deviation) -> -0.5
F44: -0.4 | G44: =NORMDIST($F44,Mean,Standard_Deviation,TRUE) -> 0.3445782584 | I44: =NORMDIST($F44,Mean,Standard_Deviation,FALSE) -> 0.3682701403 | J44: 0.03604071966 | L44: 0.3445782584 | M44: =NORMINV($L44,Mean,Standard_Deviation) -> -0.4
F45: -0.3 | G45: =NORMDIST($F45,Mean,Standard_Deviation,TRUE) -> 0.3820885778 | I45: =NORMDIST($F45,Mean,Standard_Deviation,FALSE) -> 0.3813878155 | J45: 0.03751031942 | L45: 0.3820885778 | M45: =NORMINV($L45,Mean,Standard_Deviation) -> -0.3
F46: -0.2 | G46: =NORMDIST($F46,Mean,Standard_Deviation,TRUE) -> 0.4207402906 | I46: =NORMDIST($F46,Mean,Standard_Deviation,FALSE) -> 0.391042694 | J46: 0.03865171275 | L46: 0.4207402906 | M46: =NORMINV($L46,Mean,Standard_Deviation) -> -0.2
F47: -0.1 | G47: =NORMDIST($F47,Mean,Standard_Deviation,TRUE) -> 0.4601721627 | I47: =NORMDIST($F47,Mean,Standard_Deviation,FALSE) -> 0.3969525475 | J47: 0.03943187216 | L47: 0.4601721627 | M47: =NORMINV($L47,Mean,Standard_Deviation) -> -0.1
F48: 0 | G48: =NORMDIST($F48,Mean,Standard_Deviation,TRUE) -> 0.5 | I48: =NORMDIST($F48,Mean,Standard_Deviation,FALSE) -> 0.3989422804 | J48: 0.03982783728 | L48: 0.5 | M48: =NORMINV($L48,Mean,Standard_Deviation) -> -1.392137635e-16
F49: 0.1 | G49: =NORMDIST($F49,Mean,Standard_Deviation,TRUE) -> 0.5398278373 | I49: =NORMDIST($F49,Mean,Standard_Deviation,FALSE) -> 0.3969525475 | J49: 0.03982783728 | L49: 0.5398278373 | M49: =NORMINV($L49,Mean,Standard_Deviation) -> 0.1
F50: 0.2 | G50: =NORMDIST($F50,Mean,Standard_Deviation,TRUE) -> 0.5792597094 | I50: =NORMDIST($F50,Mean,Standard_Deviation,FALSE) -> 0.391042694 | J50: 0.03943187216 | L50: 0.5792597094 | M50: =NORMINV($L50,Mean,Standard_Deviation) -> 0.2
F51: 0.3 | G51: =NORMDIST($F51,Mean,Standard_Deviation,TRUE) -> 0.6179114222 | I51: =NORMDIST($F51,Mean,Standard_Deviation,FALSE) -> 0.3813878155 | J51: 0.03865171275 | L51: 0.6179114222 | M51: =NORMINV($L51,Mean,Standard_Deviation) -> 0.3
F52: 0.4 | G52: =NORMDIST($F52,Mean,Standard_Deviation,TRUE) -> 0.6554217416 | I52: =NORMDIST($F52,Mean,Standard_Deviation,FALSE) -> 0.3682701403 | J52: 0.03751031942 | L52: 0.6554217416 | M52: =NORMINV($L52,Mean,Standard_Deviation) -> 0.4
F53: 0.5 | G53: =NORMDIST($F53,Mean,Standard_Deviation,TRUE) -> 0.6914624613 | I53: =NORMDIST($F53,Mean,Standard_Deviation,FALSE) -> 0.3520653268 | J53: 0.03604071966 | L53: 0.6914624613 | M53: =NORMINV($L53,Mean,Standard_Deviation) -> 0.5
F54: 0.6 | G54: =NORMDIST($F54,Mean,Standard_Deviation,TRUE) -> 0.7257468822 | I54: =NORMDIST($F54,Mean,Standard_Deviation,FALSE) -> 0.3332246029 | J54: 0.03428442098 | L54: 0.7257468822 | M54: =NORMINV($L54,Mean,Standard_Deviation) -> 0.6
F55: 0.7 | G55: =NORMDIST($F55,Mean,Standard_Deviation,TRUE) -> 0.7580363478 | I55: =NORMDIST($F55,Mean,Standard_Deviation,FALSE) -> 0.3122539334 | J55: 0.03228946553 | L55: 0.7580363478 | M55: =NORMINV($L55,Mean,Standard_Deviation) -> 0.7
F56: 0.8 | G56: =NORMDIST($F56,Mean,Standard_Deviation,TRUE) -> 0.7881446014 | I56: =NORMDIST($F56,Mean,Standard_Deviation,FALSE) -> 0.2896915528 | J56: 0.03010825364 | L56: 0.7881446014 | M56: =NORMINV($L56,Mean,Standard_Deviation) -> 0.8
F57: 0.9 | G57: =NORMDIST($F57,Mean,Standard_Deviation,TRUE) -> 0.8159398747 | I57: =NORMDIST($F57,Mean,Standard_Deviation,FALSE) -> 0.2660852499 | J57: 0.02779527324 | L57: 0.8159398747 | M57: =NORMINV($L57,Mean,Standard_Deviation) -> 0.9
F58: 1 | G58: =NORMDIST($F58,Mean,Standard_Deviation,TRUE) -> 0.8413447461 | I58: =NORMDIST($F58,Mean,Standard_Deviation,FALSE) -> 0.2419707245 | J58: 0.02540487142 | L58: 0.8413447461 | M58: =NORMINV($L58,Mean,Standard_Deviation) -> 1
F59: 1.1 | G59: =NORMDIST($F59,Mean,Standard_Deviation,TRUE) -> 0.8643339391 | I59: =NORMDIST($F59,Mean,Standard_Deviation,FALSE) -> 0.217852177 | J59: 0.02298919299 | L59: 0.8643339391 | M59: =NORMINV($L59,Mean,Standard_Deviation) -> 1.1
F60: 1.2 | G60: =NORMDIST($F60,Mean,Standard_Deviation,TRUE) -> 0.8849303298 | I60: =NORMDIST($F60,Mean,Standard_Deviation,FALSE) -> 0.194186055 | J60: 0.02059639072 | L60: 0.8849303298 | M60: =NORMINV($L60,Mean,Standard_Deviation) -> 1.2
F61: 1.3 | G61: =NORMDIST($F61,Mean,Standard_Deviation,TRUE) -> 0.9031995154 | I61: =NORMDIST($F61,Mean,Standard_Deviation,FALSE) -> 0.171368592 | J61: 0.01826918564 | L61: 0.9031995154 | M61: =NORMINV($L61,Mean,Standard_Deviation) -> 1.3
F62: 1.4 | G62: =NORMDIST($F62,Mean,Standard_Deviation,TRUE) -> 0.9192433408 | I62: =NORMDIST($F62,Mean,Standard_Deviation,FALSE) -> 0.1497274656 | J62: 0.01604382535 | L62: 0.9192433408 | M62: =NORMINV($L62,Mean,Standard_Deviation) -> 1.4
F63: 1.5 | G63: =NORMDIST($F63,Mean,Standard_Deviation,TRUE) -> 0.9331927987 | I63: =NORMDIST($F63,Mean,Standard_Deviation,FALSE) -> 0.1295175957 | J63: 0.01394945796 | L63: 0.9331927987 | M63: =NORMINV($L63,Mean,Standard_Deviation) -> 1.5
F64: 1.6 | G64: =NORMDIST($F64,Mean,Standard_Deviation,TRUE) -> 0.9452007083 | I64: =NORMDIST($F64,Mean,Standard_Deviation,FALSE) -> 0.1109208347 | J64: 0.01200790957 | L64: 0.9452007083 | M64: =NORMINV($L64,Mean,Standard_Deviation) -> 1.6
F65: 1.7 | G65: =NORMDIST($F65,Mean,Standard_Deviation,TRUE) -> 0.9554345372 | I65: =NORMDIST($F65,Mean,Standard_Deviation,FALSE) -> 0.09404907738 | J65: 0.01023382894 | L65: 0.9554345372 | M65: =NORMINV($L65,Mean,Standard_Deviation) -> 1.7
F66: 1.8 | G66: =NORMDIST($F66,Mean,Standard_Deviation,TRUE) -> 0.9640696809 | I66: =NORMDIST($F66,Mean,Standard_Deviation,FALSE) -> 0.0789501583 | J66: 0.008635143646 | L66: 0.9640696809 | M66: =NORMINV($L66,Mean,Standard_Deviation) -> 1.8
F67: 1.9 | G67: =NORMDIST($F67,Mean,Standard_Deviation,TRUE) -> 0.9712834402 | I67: =NORMDIST($F67,Mean,Standard_Deviation,FALSE) -> 0.06561581477 | J67: 0.007213759297 | L67: 0.9712834402 | M67: =NORMINV($L67,Mean,Standard_Deviation) -> 1.9
F68: 2 | G68: =NORMDIST($F68,Mean,Standard_Deviation,TRUE) -> 0.9772498681 | I68: =NORMDIST($F68,Mean,Standard_Deviation,FALSE) -> 0.05399096651 | J68: 0.005966427868 | L68: 0.9772498681 | M68: =NORMINV($L68,Mean,Standard_Deviation) -> 2
F69: 2.1 | G69: =NORMDIST($F69,Mean,Standard_Deviation,TRUE) -> 0.9821355794 | I69: =NORMDIST($F69,Mean,Standard_Deviation,FALSE) -> 0.04398359598 | J69: 0.004885711385 | L69: 0.9821355794 | M69: =NORMINV($L69,Mean,Standard_Deviation) -> 2.1
F70: 2.2 | G70: =NORMDIST($F70,Mean,Standard_Deviation,TRUE) -> 0.9860965525 | I70: =NORMDIST($F70,Mean,Standard_Deviation,FALSE) -> 0.03547459285 | J70: 0.003960973049 | L70: 0.9860965525 | M70: =NORMINV($L70,Mean,Standard_Deviation) -> 2.2
F71: 2.3 | G71: =NORMDIST($F71,Mean,Standard_Deviation,TRUE) -> 0.98927589 | I71: =NORMDIST($F71,Mean,Standard_Deviation,FALSE) -> 0.02832703774 | J71: 0.003179337492 | L71: 0.98927589 | M71: =NORMINV($L71,Mean,Standard_Deviation) -> 2.3
F72: 2.4 | G72: =NORMDIST($F72,Mean,Standard_Deviation,TRUE) -> 0.9918024641 | I72: =NORMDIST($F72,Mean,Standard_Deviation,FALSE) -> 0.02239453029 | J72: 0.002526574097 | L72: 0.9918024641 | M72: =NORMINV($L72,Mean,Standard_Deviation) -> 2.4
F73: 2.5 | G73: =NORMDIST($F73,Mean,Standard_Deviation,TRUE) -> 0.9937903347 | I73: =NORMDIST($F73,Mean,Standard_Deviation,FALSE) -> 0.01752830049 | J73: 0.001987870599 | L73: 0.9937903347 | M73: =NORMINV($L73,Mean,Standard_Deviation) -> 2.5
F74: 2.6 | G74: =NORMDIST($F74,Mean,Standard_Deviation,TRUE) -> 0.995338812 | I74: =NORMDIST($F74,Mean,Standard_Deviation,FALSE) -> 0.01358296923 | J74: 0.001548477302 | L74: 0.995338812 | M74: =NORMINV($L74,Mean,Standard_Deviation) -> 2.6
F75: 2.7 | G75: =NORMDIST($F75,Mean,Standard_Deviation,TRUE) -> 0.9965330262 | I75: =NORMDIST($F75,Mean,Standard_Deviation,FALSE) -> 0.01042093481 | J75: 0.001194214221 | L75: 0.9965330262 | M75: =NORMINV($L75,Mean,Standard_Deviation) -> 2.7
F76: 2.8 | G76: =NORMDIST($F76,Mean,Standard_Deviation,TRUE) -> 0.9974448697 | I76: =NORMDIST($F76,Mean,Standard_Deviation,FALSE) -> 0.007915451583 | J76: 0.0009118434726 | L76: 0.9974448697 | M76: =NORMINV($L76,Mean,Standard_Deviation) -> 2.8
F77: 2.9 | G77: =NORMDIST($F77,Mean,Standard_Deviation,TRUE) -> 0.9981341867 | I77: =NORMDIST($F77,Mean,Standard_Deviation,FALSE) -> 0.00595253242 | J77: 0.00068931703 | L77: 0.9981341867 | M77: =NORMINV($L77,Mean,Standard_Deviation) -> 2.9
F78: 3 | G78: =NORMDIST($F78,Mean,Standard_Deviation,TRUE) -> 0.998650102 | I78: =NORMDIST($F78,Mean,Standard_Deviation,FALSE) -> 0.004431848412 | J78: 0.0005159152688 | L78: 0.998650102 | M78: =NORMINV($L78,Mean,Standard_Deviation) -> 3
F80: ANALYSIS | G80: =G78-G18 -> 0.9973002039 | I80: =SUM(I18:I78) -> 9.977212517 | J80: =SUM(J18:J78) -> 0.9973002039

Sheet Simulation Example
B1: Simulation Example
B2: =Model_Name -> Simulation Example
B3: Go to Table of Contents
A4: é | B4: ç | C4: è
B7: =B1 -> Simulation Example
C9: Assumptions
H10: Mean | I10: Standard Deviation | K10: Value Used
D11: Sales (US$) | H11: 1000 | I11: 175 | K11: =NORMINV(RAND(),Mean_Sales,SD_Sales) -> 981.3021992
D12: Foreign Exchange (US$:A$) | H12: 0.92 | I12: 0.05 | K12: =NORMINV(RAND(),Mean_FX,SD_FX) -> 0.9070544409
D13: Gross Margin (%) | H13: 0.4 | I13: 0.02 | K13: =NORMINV(RAND(),Mean_GM,SD_GM) -> 0.3832416587
C16: Calculations
F18: =D11 -> Sales (US$) | H18: =K11 -> 981.3021992
F19: =D12 -> Foreign Exchange (US$:A$) | H19: =K12 -> 0.9070544409
F20: Sales (A$) | H20: =H18/H19 -> 1081.855901
F21: =D13 -> Gross Margin (%) | H21: =K13 -> 0.3832416587
F23: Gross Profit (A$) | H23: =H20*H21 -> 414.61225
C26: Data Table
F28: Data Table Switch | G28: TRUE
F30: =IF(Data_Switch,H18,) -> 981.3021992 | G30: =IF(Data_Switch,H19,) -> 0.9070544409 | H30: =IF(Data_Switch,H21,) -> 0.3832416587 | I30: =IF(Data_Switch,H23,) -> 414.61225
E31: 1 | F31: 1051.940648 | G31: 0.8491553177 | H31: 0.4065788496 | I31: 503.6732501
E32: 2 | F32: 918.5884395 | G32: 0.9094763189 | H32: 0.4188740032 | I32: 423.0707375
E33: 3 | F33: 1086.961555 | G33: 0.8864422514 | H33: 0.4028060355 | I33: 493.9235171
E34: 4 | F34: 981.6150691 | G34: 0.8995203521 | H34: 0.4001005013 | I34: 436.61567
E35: 5 | F35: 1067.405676 | G35: 0.8524074947 | H35: 0.4145275464 | I35: 519.0816114
E36: 6 | F36: 1171.260053 | G36: 0.9427030366 | H36: 0.3896240413 | I36: 484.0878384
E37: 7 | F37: 963.9580361 | G37: 0.9354357651 | H37: 0.4028115555 | I37: 415.0936392
E38: 8 | F38: 766.3637474 | G38: 0.950217037 | H38: 0.3943048133 | I38: 318.0125199
E39: 9 | F39: 1150.919059 | G39: 0.9051837918 | H39: 0.4047929865 | I39: 514.684385
E40: 10 | F40: 1126.329185 | G40: 0.9398258348 | H40: 0.4038565573 | I40: 483.9997052
E41: 11 | F41: 919.1660501 | G41: 0.9045994981 | H41: 0.3755337476 | I41: 381.5808788
E42: 12 | F42: 921.0958909 | G42: 0.9087747046 | H42: 0.4264028838 | I42: 432.184063
E43: 13 | F43: 792.9206976 | G43: 0.9292203854 | H43: 0.3933078247 | I43: 335.6167381
E44: 14 | F44: 931.0559716 | G44: 0.9489504339 | H44: 0.3721765168 | I44: 365.1583435
E45: 15 | F45: 1359.451489 | G45: 0.9382600827 | H45: 0.3849627443 | I45: 557.7751688
E46: 16 | F46: 1227.081819 | G46: 1.005430166 | H46: 0.3896608246 | I46: 475.5633255
E47: 17 | F47: 750.6438483 | G47: 0.8877614399 | H47: 0.3680931401 | I47: 311.2399782
E48: 18 | F48: 925.0202428 | G48: 0.9418405597 | H48: 0.3927625875 | I48: 385.7482461
E49: 19 | F49: 1229.031155 | G49: 0.8329185171 | H49: 0.4013270838 | I49: 592.1869657
E50: 20 | F50: 1040.503354 | G50: 0.93963085 | H50: 0.4048347113 | I50: 448.2950669
E51: 21 | F51: 1172.482952 | G51: 0.9675521313 | H51: 0.4151376121 | I51: 503.0651651
E52: 22 | F52: 1116.031117 | G52: 0.867116546 | H52: 0.3675603691 | I52: 473.072289
E53: 23 | F53: 1253.593577 | G53: 0.9961472971 | H53: 0.3962904571 | I53: 498.7085474
E54: 24 | F54: 707.3792903 | G54: 0.874520681 | H54: 0.3834290875 | I54: 310.1468058
E55: 25 | F55: 923.4236939 | G55: 0.8329958171 | H55: 0.4298509946 | I55: 476.5145095
E56: 26 | F56: 963.211663 | G56: 0.8069206152 | H56: 0.4074714854 | I56: 486.3939273
E57: 27 | F57: 1181.243818 | G57: 0.8353946418 | H57: 0.3807972187 | I57: 538.4453502
E58: 28 | F58: 933.8581118 | G58: 0.9527571701 | H58: 0.3861941879 | I58: 378.5335723
E59: 29 | F59: 981.7929249 | G59: 0.9551567012 | H59: 0.3807933852 | I59: 391.4124781
E60: 30 | F60: 880.1765877 | G60: 0.9660479909 | H60: 0.4318286595 | I60: 393.4436794
E61: 31 | F61: 1103.943714 | G61: 0.9523691506 | H61: 0.3908923544 | I61: 453.1049301
E62: 32 | F62: 881.2679085 | G62: 0.8449646415 | H62: 0.4056945056 | I62: 423.1248633
E63: 33 | F63: 1079.498047 | G63: 1.023538464 | H63: 0.4259774044 | I63: 449.2667274
E64: 34 | F64: 990.3953233 | G64: 0.9409939178 | H64: 0.3598115789 | I64: 378.7013904
E65: 35 | F65: 1374.435312 | G65: 0.8096268598 | H65: 0.4412942018 | I65: 749.1479894
E66: 36 | F66: 896.4755754 | G66: 0.8766515412 | H66: 0.4199493655 | I66: 429.4458304
E67: 37 | F67: 1303.277298 | G67: 0.9578367867 | H67: 0.4089928272 | I67: 556.4946703
E68: 38 | F68: 1053.027821 | G68: 0.9876429898 | H68: 0.4162842155 | I68: 443.8434384
E69: 39 | F69: 902.3779583 | G69: 0.9253239746 | H69: 0.4027247653 | I69: 392.7380695
E70: 40 | F70: 1230.865818 | G70: 0.8895142805 | H70: 0.3932050008 | I70: 544.097611
E71: 41 | F71: 1050.278675 | G71: 0.9679336637 | H71: 0.398220481 | I71: 432.098288
E72: 42 | F72: 821.0892958 | G72: 0.9051829669 | H72: 0.4134001317 | I72: 374.9942668
E73: 43 | F73: 898.7420476 | G73: 0.9054419228 | H73: 0.385130695 | I73: 382.2808959
E74: 44 | F74: 1327.747257 | G74: 0.7994111974 | H74: 0.3925786031 | I74: 652.0363555
E75: 45 | F75: 706.1595975 | G75: 0.9202096772 | H75: 0.417516955 | I75: 320.3982877
E76: 46 | F76: 908.2560946 | G76: 0.8829246905 | H76: 0.3878016827 | I76: 398.9278425
E77: 47 | F77: 934.5148642 | G77: 0.9580226206 | H77: 0.3764625896 | I77: 367.2250303
E78: 48 | F78: 806.1642574 | G78: 0.968102759 | H78: 0.405263259 | I78: 337.4732189
E79: 49 | F79: 1277.924366 | G79: 0.9391492364 | H79: 0.4277386969 | I79: 582.034976
E80: 50 | F80: 857.2468915 | G80: 0.9037367813 | H80: 0.3903160474 | I80: 370.2374687
E81: 51 | F81: 646.9255979 | G81: 0.855093909 | H81: 0.4224383739 | I81: 319.5978766
E82: 52 | F82: 1115.322952 | G82: 0.8951847248 | H82: 0.3643394945 | I82: 453.9355838
E83: 53 | F83: 1254.183559 | G83: 0.7686105373 | H83: 0.4374920615 | I83: 713.8795584
E84: 54 | F84: 1246.908808 | G84: 0.9040826843 | H84: 0.3884295544 | I84: 535.7211693
E85: 55 | F85: 895.0192848 | G85: 0.8678133197 | H85: 0.4227289966 | I85: 435.9815592
E86: 56 | F86: 1074.237705 | G86: 0.9047884904 | H86: 0.3522000206 | I86: 418.1602065
E87: 57 | F87: 919.9226403 | G87: 0.9647960598 | H87: 0.4331430495 | I87: 412.9972274
E88: 58 | F88: 934.6837546 | G88: 0.9049442276 | H88: 0.4045521716 | I88: 417.8471238
E89: 59 | F89: 917.4585502 | G89: 0.9284853467 | H89: 0.4261484491 | I89: 421.0874622
E90: 60 | F90: 1177.600348 | G90: 0.8886522728 | H90: 0.3928790067 | I90: 520.6248484
E91: 61 | F91: 897.8549913 | G91: 0.8433920215 | H91: 0.3942214645 | I91: 419.6787503
E92: 62 | F92: 1257.304803 | G92: 0.9601435968 | H92: 0.3519787023 | I92: 460.914924
E93: 63 | F93: 1039.493448 | G93: 0.9306098239 | H93: 0.3978198836 | I93: 444.3657824
E94: 64 | F94: 1184.089408 | G94: 0.889186864 | H94: 0.3898045755 | I94: 519.0848941
E95: 65 | F95: 1075.618787 | G95: 0.8816213889 | H95: 0.4023837758 | I95: 490.9267789
E96: 66 | F96: 1052.78633 | G96: 0.9208365359 | H96: 0.4021760905 | I96: 459.805268
E97: 67 | F97: 831.7361473 | G97: 0.965112949 | H97: 0.3915575521 | I97: 337.4450319
E98: 68 | F98: 899.1890398 | G98: 0.941120555 | H98: 0.3925903341 | I98: 375.0985181
E99: 69 | F99: 1345.857791 | G99: 0.8956241105 | H99: 0.4193220205 | I99: 630.1168105
E100: 70 | F100: 759.1030493 | G100: 0.9060784354 | H100: 0.3868662498 | I100: 324.1125033
E101: 71 | F101: 676.933851 | G101: 0.8907582502 | H101: 0.3600121789 | I101: 273.5921117
E102: 72 | F102: 912.1808378 | G102: 1.028429204 | H102: 0.4144562584 | I102: 367.6082471
E103: 73 | F103: 1101.105972 | G103: 0.8951487357 | H103: 0.3949792671 | I103: 485.8567212
E104: 74 | F104: 1204.603492 | G104: 0.8225526512 | H104: 0.3971575349 | I104: 581.6252038
E105: 75 | F105: 1008.317303 | G105: 1.00892435 | H105: 0.4118818407 | I105: 411.6340209
E106: 76 | F106: 855.795385 | G106: 0.8855489691 | H106: 0.3981798734 | I106: 384.8014169
E107: 77 | F107: 1116.066906 | G107: 0.869932694 | H107: 0.423544429 | I107: 543.3798774
E108: 78 | F108: 950.3199349 | G108: 0.9707949739 | H108: 0.4112245605 | I108: 402.5514224
E109: 79 | F109: 1209.728709 | G109: 0.9208664169 | H109: 0.3927110192 | I109: 515.8987076
E110: 80 | F110: 714.2474262 | G110: 0.9431768043 | H110: 0.39648523 | I110: 300.2497026
E111: 81 | F111: 1042.726924 | G111: 0.9961503682 | H111: 0.4080521103 | I111: 427.1312199
E112: 82 | F112: 899.6663338 | G112: 0.9732997056 | H112: 0.4050655184 | I112: 374.4209597
E113: 83 | F113: 859.3692835 | G113: 0.8555153328 | H113: 0.4167293522 | I113: 418.6066469
E114: 84 | F114: 1048.083671 | G114: 0.9309160571 | H114: 0.4302852322 | I114: 484.4420958
E115: 85 | F115: 1017.757323 | G115: 0.9275516455 | H115: 0.3621050166 | I115: 397.3202292
E116: 86 | F116: 1195.9928 | G116: 0.9154400507 | H116: 0.3858074277 | I116: 504.0449185
E117: 87 | F117: 1124.875622 | G117: 0.9647886198 | H117: 0.3904768168 | I117: 455.2684838
E118: 88 | F118: 1048.407515 | G118: 0.924538763 | H118: 0.3645374507 | I118: 413.3778033
E119: 89 | F119: 669.6192041 | G119: 0.8878427164 | H119: 0.3823481444 | I119: 288.3705136
E120: 90 | F120: 850.8115522 | G120: 0.8607059219 | H120: 0.4318368283 | I120: 426.8725854
E121: 91 | F121: 965.1855505 | G121: 0.9217518621 | H121: 0.4018204303 | I121: 420.7545318
E122: 92 | F122: 852.171772 | G122: 1.0061853 | H122: 0.3873737308 | I122: 328.0796872
E123: 93 | F123: 1218.945476 | G123: 0.8829419343 | H123: 0.3648327251 | I123: 503.6698142
E124: 94 | F124: 1158.066183 | G124: 0.8878689687 | H124: 0.4096574397 | I124: 534.3248205
E125: 95 | F125: 1212.504036 | G125: 0.8670035225 | H125: 0.4366609268 | I125: 610.6701097
E126: 96 | F126: 1048.547887 | G126: 0.9492463471 | H126: 0.3814250608 | I126: 421.32629
E127: 97 | F127: 853.7281106 | G127: 0.8686575008 | H127: 0.4174140179 | I127: 410.240032
E128: 98 | F128: 1056.323628 | G128: 0.8260790013 | H128: 0.428610422 | I128: 548.0726605
E129: 99 | F129: 1215.234543 | G129: 0.9126432468 | H129: 0.4266336818 | I129: 568.0861489
E130: 100 | F130: 1083.114431 | G130: 0.8787299197 | H130: 0.3813047754 | I130: 469.9927653
E131: 101 | F131: 1212.522887 | G131: 0.9225651366 | H131: 0.380847425 | I131: 500.5459245
E132: 102 | F132: 757.4201596 | G132: 0.8538750669 | H132: 0.4189536643 | I132: 371.6280795
E133: 103 | F133: 882.6975652 | G133: 0.8898942183 | H133: 0.4406043754 | I133: 437.0411689
E134: 104 | F134: 1004.595504 | G134: 0.9548203457 | H134: 0.3960880072 | I134: 416.73623
E135: 105 | F135: 1045.37986 | G135: 0.8559148152 | H135: 0.3781008385 | I135: 461.7971258
E136: 106 | F136: 1250.644537 | G136: 0.9155172026 | H136: 0.4082722627 | I136: 557.7213336
E137: 107 | F137: 1105.328479 | G137: 0.8061939712 | H137: 0.3939404285 | I137: 540.1101844
E138: 108 | F138: 834.885333 | G138: 0.8882387883 | H138: 0.4229516452 | I138: 397.5463916
E139: 109 | F139: 972.6021125 | G139: 0.8984997379 | H139: 0.3706334571 | I139: 401.2008776
E140: 110 | F140: 1428.926785 | G140: 0.8459855133 | H140: 0.3720476108 | I140: 628.4135933
E141: 111 | F141: 1122.680256 | G141: 0.9464516942 | H141: 0.4161110536 | I141: 493.5906048
E142: 112 | F142: 1185.887289 | G142: 0.896236362 | H142: 0.3971344021 | I142: 525.4826289
E143: 113 | F143: 1148.239041 | G143: 0.8645254239 | H143: 0.3688898357 | I143: 489.9493983
E144: 114 | F144: 931.9225937 | G144: 0.8804130089 | H144: 0.3779914329 | I144: 400.1062604
E145: 115 | F145: 1104.212673 | G145: 0.909032609 | H145: 0.3559428221 | I145: 432.3679603
E146: 116 | F146: 1163.003165 | G146: 0.9189455602 | H146: 0.426443207 | I146: 539.6998703
E147: 117 | F147: 617.0559122 | G147: 0.9473089579 | H147: 0.3994643081 | I147: 260.2021346
E148: 118 | F148: 954.5691984 | G148: 0.9072692438 | H148: 0.3991813312 | I148: 419.9924178
E149: 119 | F149: 1227.649085 | G149: 0.9453258898 | H149: 0.3622543438 | I149: 470.4422235
E150: 120 | F150: 998.269703 | G150: 0.8207495093 | H150: 0.3863183406 | I150: 469.8752674
E151: 121 | F151: 1132.165654 | G151: 0.9539699951 | H151: 0.4220218577 | I151: 500.8529148
E152: 122 | F152: 1235.012041 | G152: 0.8624105882 | H152: 0.3915492733 | I152: 560.7167559
E153: 123 | F153: 1176.193543 | G153: 0.9236755562 | H153: 0.4184438704 | I153: 532.8396699
E154: 124 | F154: 1216.345605 | G154: 0.8984840232 | H154: 0.3704899594 | I154: 501.5602082
E155: 125 | F155: 1129.540448 | G155: 0.9148936186 | H155: 0.4029914743 | I155: 497.5389064
E156: 126 | F156: 1089.457034 | G156: 0.9867216402 | H156: 0.3900197657 | I156: 430.6278081
E157: 127 | F157: 1151.256007 | G157: 0.9154667953 | H157: 0.4107939292 | I157: 516.5987241
E158: 128 | F158: 985.1365192 | G158: 0.8301868887 | H158: 0.3974017682 | I158: 471.5745333
E159: 129 | F159: 1099.730466 | G159: 0.9377549294 | H159: 0.395870104 | I159: 464.2475344
E160: 130 | F160: 978.4811988 | G160: 0.8723656882 | H160: 0.3787905265 | I160: 424.8670179
E161: 131 | F161: 940.0218651 | G161: 0.8619385646 | H161: 0.3869598424 | I161: 422.0146629
E162: 132 | F162: 1023.501424 | G162: 0.8083624189 | H162: 0.4112817961 | I162: 520.7410613
E163: 133 | F163: 915.4049168 | G163: 0.8852203088 | H163: 0.4141900691 | I163: 428.3132933
E164: 134 | F164: 765.10022 | G164: 0.9940060507 | H164: 0.3769648199 | I164: 290.1550413
E165: 135 | F165: 929.2165213 | G165: 0.906416147 | H165: 0.3703054283 | I165: 379.6202473
E166: 136 | F166: 1062.678866 | G166: 0.9209805863 | H166: 0.4484383356 | I166: 517.433211
E167: 137 | F167: 944.0869217 | G167: 0.8726912597 | H167: 0.4261411375 | I167: 461.0041297
E168: 138 | F168: 820.0173402 | G168: 0.9485780204 | H168: 0.4185141326 | I168: 361.7929558
E169: 139 | F169: 1207.245064 | G169: 0.8829092374 | H169: 0.4213046911 | I169: 576.0705488
E170: 140 | F170: 649.2058529 | G170: 0.8434385971 | H170: 0.3923951443 | I170: 302.0317367
E171: 141 | F171: 1196.418488 | G171: 0.9198011624 | H171: 0.4333950896 | I171: 563.7325969
E172: 142 | F172: 1273.862187 | G172: 0.9276831604 | H172: 0.3848882517 | I172: 528.5151343
E173: 143 | F173: 985.651243 | G173: 0.8774742421 | H173: 0.3992875412 | I173: 448.5126086
E174: 144 | F174: 1075.451706 | G174: 0.9731957789 | H174: 0.3899694396 | I174: 430.944429
E175: 145 | F175: 1162.137526 | G175: 0.8846019896 | H175: 0.4107503222 | I175: 539.6193643
E176: 146 | F176: 1305.795571 | G176: 1.008479451 | H176: 0.39494625 | I176: 511.3828186
E177: 147 | F177: 1001.447581 | G177: 0.9515798871 | H177: 0.4196404318 | I177: 441.631755
E178: 148 | F178: 943.4575145 | G178: 0.9718183101 | H178: 0.3969225787 | I178: 385.3390965
E179: 149 | F179: 1113.456429 | G179: 0.8988991741 | H179: 0.3688531631 | I179: 456.8943187
E180: 150 | F180: 851.9040078 | G180: 0.9132813117 | H180: 0.3802525351 | I180: 354.6975663
E181: 151 | F181: 1340.83907 | G181: 0.9763235069 | H181: 0.400861761 | I181: 550.5256272
E182: 152 | F182: 1134.313728 | G182: 0.8775964291 | H182: 0.3754452195 | I182: 485.2716495
E183: 153 | F183: 974.1367956 | G183: 0.9453701152 | H183: 0.4141195563 | I183: 426.720806
E184: 154 | F184: 807.68991 | G184: 0.8865691759 | H184: 0.388521178 | I184: 353.9539202
E185: 155 | F185: 1025.893582 | G185: 0.9146231098 | H185: 0.3745247209 | I185: 420.0883439
E186: 156 | F186: 827.2891587 | G186: 0.8551201899 | H186: 0.3794927654 | I186: 367.1416654
E187: 157 | F187: 1235.821982 | G187: 0.9779492561 | H187: 0.4279952536 | I187: 540.8521347
E188: 158 | F188: 1157.645268 | G188: 0.9762992418 | H188: 0.3917977034 | I188: 464.5735015
E189: 159 | F189: 1064.388832 | G189: 0.9655140827 | H189: 0.4263473711 | I189: 470.0080389
E190: 160 | F190: 853.0211438 | G190: 0.9193545012 | H190: 0.3935037728 | I190: 365.1116495
E191: 161 | F191: 903.4566535 | G191: 0.8946573976 | H191: 0.3723862183 | I191: 376.0487618
E192: 162 | F192: 869.5633769 | G192: 0.9286220901 | H192: 0.3785276837 | I192: 354.4539963
E193: 163 | F193: 1236.063662 | G193: 0.8542045102 | H193: 0.4113179654 | I193: 595.1914145
E194: 164 | F194: 1153.565094 | G194: 0.9494372113 | H194: 0.403270731 | I194: 489.9734635
E195: 165 | F195: 1033.422829 | G195: 0.900394469 | H195: 0.4118015979 | I195: 472.6430326
E196: 166 | F196: 898.1990634 | G196: 0.9260262597 | H196: 0.3929082037 | I196: 381.1012667
E197: 167 | F197: 1099.682773 | G197: 0.910642419 | H197: 0.3909114711 | I197: 472.0608236
E198: 168 | F198: 744.2199897 | G198: 0.8782130766 | H198: 0.4301419401 | I198: 364.5131675
E199: 169 | F199: 1076.837113 | G199: 0.8875793466 | H199: 0.3819173532 | I199: 463.3532556
E200: 170 | F200: 1033.968853 | G200: 1.017091781 | H200: 0.3768818004 | I200: 383.1355737
E201: 171 | F201: 1227.791064 | G201: 0.8656782088 | H201: 0.3841420222 | I201: 544.8284795
E202: 172 | F202: 1136.789099 | G202: 0.8530514491 | H202: 0.4135041596 | I202: 551.0418176
E203: 173 | F203: 984.696471 | G203: 0.8090161867 | H203: 0.3850547548 | I203: 468.6705463
E204: 174 | F204: 1059.27427 | G204: 0.9761181588 | H204: 0.411634299 | I204: 446.7016803
E205: 175 | F205: 1009.027379 | G205: 0.9030207396 | H205: 0.3922533696 | I205: 438.3004423
E206: 176 | F206: 1015.556222 | G206: 1.060966393 | H206: 0.4108480053 | I206: 393.2633971
E207: 177 | F207: 1047.710494 | G207: 1.005657989 | H207: 0.4189221482 | I207: 436.4397594
E208: 178 | F208: 1084.341373 | G208: 0.8786907339 | H208: 0.3972247849 | I208: 490.192114
E209: 179 | F209: 789.6984728 | G209: 0.8608890451 | H209: 0.3981768963 | I209: 365.2499573
E210: 180 | F210: 1230.103092 | G210: 0.8362464629 | H210: 0.4294743601 | I210: 631.7488466
E211: 181 | F211: 901.0105091 | G211: 0.8626583287 | H211: 0.3839288225 | I211: 400.9975819
... 930 more rows

Sheet Required_List_SC
A1: SC
C9: Required List
C10: Section 2.
C11: =Model_Name -> Simulation Example
C12: Go to Table of Contents
C13: ç | D13: è
C17: Section Cover Notes:
C18: Look Up list for the simulations outputs.

Sheet Lookups
B1: Lookups
B2: =Model_Name -> Simulation Example
B3: Go to Table of Contents
A4: é | B4: ç
B7: Simulation Outputs
F9: List
F10: ='Simulation Example'!D11 -> Sales (US$) | H10: LU_Simulation_Outputs
F11: ='Simulation Example'!D12 -> Foreign Exchange (US$:A$)
F12: ='Simulation Example'!D13 -> Gross Margin (%)
F13: ='Simulation Example'!L1045 -> Gross Profit (A$)
